Cogmind - Beta 13 @@@ ROGUE MODE // 2024.04.04 @ 19:37:40 Player: Body_Elektric Result: Destroyed by DAS Turret with DAS Cannon Performance ------------- Evolutions (0) 0 Regions Visited (3) 600 Robots Destroyed (30) 150 Value Destroyed (605) 605 Prototype IDs (36) 720 Alien Tech Used (0) 0 Bonus (300) 300 TOTAL SCORE: 2375 Bonus ------- Aligned with FarCom 300 Cogmind --------- Core Integrity 0/250 Matter 191/300 Energy 160/160 System Corruption 3% Temperature Cool (0) Movement Rolling (110) Ox2 Location -10/Exiles Parts ------- > --- POWER (1) -------- Light Nuclear Core > --- PROPULSION (2) --- Wheel Wheel > --- UTILITY (2) ------ High-capacity Storage Unit > --- WEAPON (2) ------- Datajack > --- INVENTORY (20) --- Ion Engine Wheel Wheel Wheel Wheel Wheel High-capacity Matter Pod (0) Faulty Experimental Sensor Array Improved Terrain Scanner Targeting Computer Armor Integrity Analyzer Phase Shifter Cloak of Protection Weapon Shielding High-powered Tractor Beam Light Cannon Light Cannon Grenade Launcher Grenade Launcher Mining Laser Peak State ------------ > --- POWER ------------ Light Nuclear Core > --- PROPULSION ------- Wheel Wheel > --- UTILITY ---------- High-capacity Storage Unit Cloak of Protection > --- WEAPON ----------- Datajack > --- INVENTORY -------- Ion Engine Wheel Wheel Wheel Wheel Wheel High-capacity Matter Pod Experimental Sensor Array Improved Terrain Scanner Targeting Computer Armor Integrity Analyzer Phase Shifter Weapon Shielding High-powered Tractor Beam Light Cannon Light Cannon Grenade Launcher Grenade Launcher Mining Laser [Rating: 18] Favorites ----------- Power Ion Engine Engine Ion Engine Power Core Light Nuclear Core Propulsion Wheel Wheel Wheel Utility Seismic Detector Device Seismic Detector Storage High-capacity Storage Unit Weapon Light Cannon Energy Gun Small Laser Ballistic Gun Assault Rifle Ballistic Cannon Light Cannon Launcher Grenade Launcher Special Weapon Mining Laser Special Melee Weapon Datajack Build | -11 -10 -10 -10 ------- Run | Yrd Mat Min Exi Slots Evolved . | . . . . Power . | . . . . Propulsion . | . . . . Utility . | . . . . Weapon . | . . . . Parts Attached 36 | 8 14 10 4 Power 3 | 1 1 1 . Engine 2 | 1 1 . . Core 1 | . . 1 . Reactor . | . . . . Propulsion 6 | 3 2 1 . Treads . | . . . . Leg . | . . . . Wheel 6 | 3 2 1 . Hover . | . . . . Flight . | . . . . Utility 7 | 2 2 2 1 Device 5 | 1 1 2 1 Storage 2 | 1 1 . . Processor . | . . . . Hackware . | . . . . Protection . | . . . . Artifact . | . . . . Weapon 20 | 2 9 6 3 Energy Gun 2 | 1 1 . . Energy Cannon . | . . . . Ballistic Gun 4 | 1 3 . . Ballistic Cannon 6 | . 2 4 . Launcher 2 | . . 1 1 Special Weapon 5 | . 3 1 1 Impact Weapon . | . . . . Slashing Weapon . | . . . . Piercing Weapon . | . . . . Special Melee Weapon 1 | . . . 1 Unidentified Prototypes . | . . . . Parts Lost 7 | . 4 3 . Power 1 | . 1 . . Propulsion 3 | . 2 1 . Utility 1 | . . 1 . Weapon 2 | . 1 1 . Highest Loss Streak 4 | . 4 2 . To Critical Strikes . | . . . . Average Slot Usage (%) 93 | . 91 97 82 Engine 7 | . 11 5 . Core 4 | . . 8 14 Wheel 25 | . 22 27 28 Device 13 | . 14 12 11 Storage 14 | . 14 14 14 Energy Gun 2 | . 4 . . Ballistic Gun 6 | . 14 . . Ballistic Cannon 15 | . 7 27 . Special Weapon 1 | . 1 . . Special Melee Weapon 1 | . . . 13 Naked Turns . | . . . . Heaviest Build 54 | 14 51 52 54 Greatest Support 26 | 26 20 20 20 Greatest Overweight (x) 15 | . 15 5 2 Average Overweight (x) 1 | . 1 2 2 Largest Inventory Capacity 20 | 8 20 20 20 Average Capacity 17 | 7 14 20 20 Most Carried 20 | 4 18 18 20 Average Carried 13 | 2 9 17 18 Final Capacity 20 | 8 20 20 20 Final Carried 20 | 4 18 17 20 Class Distribution -------------------- 91% | Mutant 8% | Scavenger-Mutant Dominant Class ---------------- Mutant | -10/Materials Mutant | -10/Mines Mutant | -10/Exiles Resources | -11 -10 -10 -10 ----------- Run | Yrd Mat Min Exi Matter Collected 1124 | 282 389 453 . Remotely . | . . . . Salvage Created 665 | 76 375 214 . Parts 43 | 4 26 13 . Haulers Intercepted 2 | . 2 . . Recyclers Shooed 1 | . 1 . . Parts Field Recycled . | . . . . Retrieved Matter . | . . . . Parts Self-Destructed . | . . . . Prevented . | . . . . Kills | -11 -10 -10 -10 ------- Run | Yrd Mat Min Exi Combat Hostiles Destroyed 17 | . 7 10 . Guns 4 | . 4 . . Cannons 13 | . 3 10 . Classes Destroyed 10 | 2 7 1 . Worker 3 | . 1 2 . Builder 1 | . 1 . . Tunneler 3 | 1 1 1 . Hauler 2 | . 2 . . Recycler 1 | 1 . . . Operator 1 | . 1 . . Watcher 2 | . 2 . . Swarmer 6 | . 3 3 . Grunt 10 | . 4 6 . Demolisher 1 | . . 1 . Best Kill Streak 4 | 2 4 3 . Combat Bots Only 4 | . 4 3 . Max Kills in Single Turn 2 | 1 1 2 . Gunslinging . | . . . . Exploded . | . . . . Melee . | . . . . Uniques/NPCs Destroyed . | . . . . Combat | -11 -10 -10 -10 -------- Run | Yrd Mat Min Exi Hostile Shots Fired 99 | . 57 41 1 Missed 23 | . 15 8 . Damage Taken 1001 | . 528 413 60 Core 276 | . 134 82 60 Absorbed by Shields . | . . . . Core Remaining (%) 100 | 100 . . . Volleys Fired 95 | 3 49 42 1 Largest 2 | 2 2 2 1 Hottest 156 | 60 156 80 100 Shots Fired 180 | 6 97 76 1 Gun 77 | 6 69 2 . Cannon 91 | . 21 70 . Launcher 1 | . . 1 . Special 11 | . 7 3 1 Kinetic 156 | 3 81 72 . Thermal 23 | 3 16 3 1 Explosive 1 | . . 1 . Electromagnetic . | . . . . Robot Hit Streak 8 | 3 8 6 . Robot Miss Streak 4 | 1 3 4 . Penetration Max . | . . . . Secondary Targets . | . . . . Shots Hit Robots 88 | 4 46 35 3 Core Hits 40 | 3 19 18 . Critical Kills . | . . . . Critical Parts Destroyed . | . . . . Critical Strikes 1 | . 1 . . Blast 1 | . 1 . . Melee Attacks 3 | . . . 3 Impact . | . . . . Slashing . | . . . . Piercing . | . . . . Sneak Attacks 3 | . . . 3 Combat Hostiles . | . . . . Follow-up Attacks . | . . . . Damage Inflicted 1369 | 47 678 644 . Guns 492 | 47 445 . . Cannons 838 | . 224 614 . Explosions 20 | . . 20 . Melee . | . . . . Ramming 9 | . 9 . . Kinetic 1288 | 15 659 614 . Thermal 52 | 32 10 10 . Explosive 20 | . . 20 . Electromagnetic . | . . . . Impact . | . . . . Slashing . | . . . . Piercing . | . . . . Highest Corruption 3 | . 3 3 3 Average Corruption 2 | . 2 3 3 Corruption Purged . | . . . . Corruption Blocked . | . . . . Effects 56 | . 22 29 5 Message Errors 17 | . 8 6 3 Matter Fused 9 | . 3 5 1 Heat Flow Errors 9 | . 2 6 1 Energy Discharges 9 | . 3 6 . Parts Rejected 1 | . . 1 . Data Loss (minor) 3 | . 1 2 . Data Loss (major) 2 | . 2 . . Misfires 2 | . 1 1 . Alerts 3 | . 1 2 . Weapon Failures 1 | . 1 . . Overload Shots . | . . . . Overflow Damage 9 | . 9 . . Projectiles 9 | . 9 . . Explosions . | . . . . Melee . | . . . . Knockbacks 14 | . . 14 . Impact . | . . . . Kinetic 11 | . . 11 . Secondary 3 | . . 3 . Self-Inflicted Damage 7 | . 7 . . Shots . | . . . . Rammed 1 | . 1 . . Targets Rammed 1 | . 1 . . Kicked . | . . . . Crushed . | . . . . Highest Temperature 225 | . 186 225 104 Average Temperature 58 | . 50 64 39 Received Heat Transfer 423 | . 255 168 . Siege Activations . | . . . . Robots Corrupted . | . . . . Combat Hostiles . | . . . . Parts Fried . | . . . . Impact Corruptions . | . . . . Robots Melted . | . . . . Combat Hostiles . | . . . . Parts Melted . | . . . . Heat Transferred 180 | 75 25 80 . Parts Sabotaged . | . . . . Parts Stolen . | . . . . Parts Stripped . | . . . . Power Chain Reactions . | . . . . Alert | -11 -10 -10 -10 ------- Run | Yrd Mat Min Exi Peak Influence 139 | 10 112 139 . Initial 19 | . 6 19 . Average 45 | 3 41 52 . Maximum Alert Level . | . . . . Low Security (%) 100 | 100 100 100 . Level 1 . | . . . . Level 2 . | . . . . Level 3 . | . . . . Level 4 . | . . . . Level 5 . | . . . . High Security . | . . . . Max Security . | . . . . Squads Dispatched 1 | . 1 . . Investigation 1 | . 1 . . Extermination . | . . . . Reinforcement . | . . . . Assault . | . . . . Garrison . | . . . . Intercept . | . . . . Searches Triggered . | . . . . Construction Impeded . | . . . . Haulers Reinforced . | . . . . Active Scanning Responses . | . . . . Cargo Convoy Interrupts . | . . . . Stealth | -11 -10 -10 -10 --------- Run | Yrd Mat Min Exi Distress Signals 1 | . 1 . . Communications Jammed . | . . . . Distress Signals . | . . . . Times Spotted 30 | . 18 12 . Peak Tracking Total 9 | . 5 3 9 Tactical Retreats 1 | . 1 . . Traps | -11 -10 -10 -10 ------- Run | Yrd Mat Min Exi Traps Triggered . | . . . . Indirectly . | . . . . Trap Hack Attempts . | . . . . Triggered . | . . . . Disarmed . | . . . . Reprogrammed . | . . . . Reused . | . . . . Traps Extracted . | . . . . Installed . | . . . . Triggered . | . . . . Machines | -11 -10 -10 -10 ---------- Run | Yrd Mat Min Exi Machines Disabled 1 | . . . 1 Max in Single Turn 1 | . . . 1 Machines Repaired . | . . . . Machines Dismantled . | . . . . Machines Sabotaged . | . . . . Overloaded Fab Kills . | . . . . Hacking | -11 -10 -10 -10 --------- Run | Yrd Mat Min Exi Machines Accessed 12 | . 10 1 1 Terminals 9 | . 8 1 . Fabricators . | . . . . Repair Stations 1 | . 1 . . Recycling Units 1 | . 1 . . Scanalyzers . | . . . . Garrison Access . | . . . . Total Hacks 32 | . 28 3 1 Successful 12 | . 10 1 1 Failed 20 | . 18 2 . Catastrophic 5 | . 5 . . Database Lockouts . | . . . . Manual 22 | . 18 3 1 Terminals 28 | . 25 3 . Fabricators . | . . . . Repair Stations 1 | . 1 . . Recycling Units 2 | . 2 . . Scanalyzers . | . . . . Garrison Access . | . . . . Terminal Hacks 11 | . 9 1 1 Part Schematic 1 | . . 1 . Robot Analysis 3 | . 3 . . Prototype ID Bank 1 | . 1 . . Locate Traps 2 | . 2 . . Recall Investigation 1 | . 1 . . Hauler Manifests 2 | . 2 . . Derelict Proto ID Bank 1 | . . . 1 Fabricator Hacks . | . . . . Repair Station Hacks . | . . . . Recycling Unit Hacks 1 | . 1 . . Report Inventory 1 | . 1 . . Scanalyzer . | . . . . Garrison Access Hacks . | . . . . Unauthorized Hacks . | . . . . Terminals . | . . . . Fabricators . | . . . . Repair Stations . | . . . . Recycling Units . | . . . . Scanalyzers . | . . . . Garrison Access . | . . . . Data Cores Recovered 1 | . 1 . . Used . | . . . . Hacking Detections 11 | . 10 1 . Full Trace Events 4 | . 3 1 . Feedback Events . | . . . . Feedback Blocked . | . . . . Robot Schematics Acquired . | . . . . Robots Built . | . . . . Authchips . | . . . . Time . | . . . . Total Robot Build Rating . | . . . . Part Schematics Acquired 1 | . . 1 . Parts Built . | . . . . Authchips . | . . . . Time . | . . . . Total Part Build Rating . | . . . . Parts Repaired . | . . . . Time . | . . . . Parts Recycled . | . . . . Recycled Matter . | . . . . Retrieved Matter . | . . . . Retrieved Components . | . . . . Parts Scanalyzed . | . . . . Part Schematics Acquired . | . . . . Parts Damaged . | . . . . Bothacking | -11 -10 -10 -10 ------------ Run | Yrd Mat Min Exi Used RIF Installer . | . . . . Robots Hacked 3 | . . . 3 Non-combat 2 | . . . 2 Combat 1 | . . . 1 Robot Hacks Applied 3 | . . . 3 parse_system 3 | . . . 3 Relay Couplers Released . | . . . . Fabnet Peak Effective % . | . . . . Robots Rewired . | . . . . Allies Hacked . | . . . . Hacks Repelled . | . . . . Allies | -11 -10 -10 -10 -------- Run | Yrd Mat Min Exi Total Allies . | . . . . Largest Group . | . . . . Highest-Rated Group . | . . . . Highest-Rated Ally . | . . . . Total Orders . | . . . . Ally Attacks . | . . . . Total Damage . | . . . . Kills . | . . . . Allies Corrupted . | . . . . Allies Melted . | . . . . Intel | -11 -10 -10 -10 ------- Run | Yrd Mat Min Exi Robot Analysis Total 3 | . 3 . . Derelict Logs Recovered 2 | . . 2 . Drone Launches . | . . . . Drone Recoveries . | . . . . Exploration | -11 -10 -10 -10 ------------- Run | Yrd Mat Min Exi Turns Passed 3496 | 89 1588 1501 318 Spaces Moved 2703 | 75 1188 1166 274 Core 35 | 1 34 . . Treads . | . . . . Legs . | . . . . Wheels 2668 | 74 1154 1166 274 Hover . | . . . . Flight . | . . . . Fastest Speed 50 | 50 80 110 110 Average Speed 109 | 85 111 110 110 Slowest Speed 800 | 90 800 155 110 Overloaded Moves . | . . . . Propulsion Burnouts . | . . . . Robots Hopped . | . . . . Cave-ins Triggered . | . . . . Exploration Rate (%) 62 | 4 98 95 52 Regions Visited 3 Branch Regions 2 Pre-discovered Areas 1 | . . 1 . Known Exits Taken . | . . . . Unknown Exits Taken 3 | 1 1 1 . Scrap Searched 1 | . . 1 . Spaces Dug 7 | . 7 . . Terrain Destroyed 14 | . 7 7 . Melee . | . . . . Projectile 7 | . 7 . . AOE 7 | . . 7 . Terrain Rammed 1 | . 1 . . Walls Destroyed . | . . . . Machines Disabled . | . . . . Actions | -11 -10 -10 -10 --------- Run | Yrd Mat Min Exi Total 3025 | 90 1344 1303 288 Wait 139 | . 62 77 . Move 2700 | 74 1187 1165 274 Hop . | . . . . Pick Up 30 | 4 21 5 . Fast Attach 13 | 8 4 . 1 Attach 10 | . 2 5 3 Detach 6 | . . . 6 Swap 13 | . 8 5 . Drop 14 | 1 9 4 . Fire 95 | 3 49 42 1 Melee 3 | . . . 3 Ram 2 | . 2 . . Kick . | . . . . Crush . | . . . . Escape Stasis . | . . . . Rewire . | . . . . Trap . | . . . . Miscellaneous . | . . . . Route ------- -11/Scrapyard -10/Materials (discovered 5 exits: [*Mat x3] / *Min x2) -10/Mines (discovered 4 exits: [*Mat x2] / *Exi / [*Sub]) -10/Exiles (discovered 1 exit: [*Min]) History --------- Turn | Location | Event 19 | -11/Scrapyard | Discovered new exit (range 16) 90 | -11/Scrapyard | Entered Materials 129 | -10/Materials | Discovered new exit (range 15) 308 | -10/Materials | Build established: Mutant 378 | -10/Materials | Discovered new exit (range 16) 584 | -10/Materials | Discovered new exit (range 10) 868 | -10/Materials | Discovered new exit (range 12) 908 | -10/Materials | Core integrity fell below 50% 941 | -10/Materials | Lost 4 parts (1p2n1w) 1156 | -10/Materials | Discovered new exit (range 7) 1678 | -10/Materials | Entered Mines 1750 | -10/Mines | Found a damaged Exp. Sensor Array with a note attached 1752 | -10/Mines | Found Prototype Device 1868 | -10/Mines | Learned location of 1 exit from Materials 2270 | -10/Mines | Core integrity fell below 20% 2461 | -10/Mines | A weapon hastily lodged in a ceiling crevice suddenly fell to the ground 2594 | -10/Mines | Learned location of Mines (-9) 2626 | -10/Mines | Discovered new exit (range 14) 2638 | -10/Mines | Assembled infested the area 2643 | -10/Mines | Assisted by a Guerilla fighting off Assembled 3057 | -10/Mines | Discovered new exit (range 3) 3082 | -10/Mines | Deemed a non-threat by the Exiles lab entrance 3083 | -10/Mines | Discovered new exit (range 5) 3113 | -10/Mines | Discovered new exit (range 12) 3179 | -10/Mines | Entered Exiles 3209 | -10/Exiles | Discovered new exit (range 15) 3228 | -10/Exiles | Met 8R-AWN 3260 | -10/Exiles | Met EX-HEX 3310 | -10/Exiles | Met EX-BIN 3333 | -10/Exiles | Aligned with FarCom system 3334 | -10/Exiles | Given EX-Vault access code 3382 | -10/Exiles | Opened EX-Vault 3393 | -10/Exiles | Found Cloak of Protection 3418 | -10/Exiles | Warned to stay clear of 0b10 Research branches 3456 | -10/Exiles | Met EX-DEC 3486 | -10/Exiles | Attacked by the Exiles 3497 | -10/Exiles | Destroyed by DAS Turret with DAS Cannon Last Messages --------------- EX-BIN: Oh yeah, I'd suggest you stay away from the 0b10 Research branches, since the FarCom signals could be picked up there, but you're welcome to try if you really want to. And if we have to leave here due to unforeseen circumstances, don't worry the FarCom system will continue to maintain contact via our distributed network. EX-BIN: And don't even think about spreading that code around. We're gonna change it right after you leave. Most certainly not to something like 1234 which I did last time as a little joke and some thief managed to sneak in here and steal a few of HEX's prototypes. EX-DEC: Ah I see we have a visitor. One wrong move in here and I'll invert your atomic chain! EX-DEC: "Oops, I hope HEX didn't hear that..." Components damaged. EXILES: Hostile robot within lab perimeter. Defensive protocols time, folks! Map ----- +----------------------------------------------------+ | ??????????????????????????????????????# ## " | | ???????????????????????????????######?# #??""" | | ???????????????????????????????""""""?# #???#? | | ??????????????????????????????#"""" ## #????? | | ??????????????????????????????#""X" #????? | | ??????????????????????????????#" #????? | | ??????????????????????????????#" ## #????? | | ??????????????????????????????#""""""?# #?#### | | ??????????????????????????????##"###??# #?#""" | | ??????????????????????????????? ??????# #?#""" | | ??????????????????????????????????????# #?#""" | | ?????????????????????????????????????## ###"" | | ?????????????????????????????????????#" | | ?????????????????????????????????????#" | | ?????????????????????????????????????#" | | ?????????????????????????????????????#" | | ??????????????????????########???????#" | | ??????????????????????# """#???????#" | | ??????????????????????#"" " "#???????## | | ??????????????????????#"" #????????# | | ??????????????????????#"" #????????#" "X" | | ??????????????????????#"" "#????????#" """ | | ??????????????????????# ""#????????#" """"" | | ??????????????????????#"" ""#???????##" ###### | | ??????????????????????###% ###??????##"" #????? | | ???????????? ??##?????###@ ###?######"" #????? | | ?????????? """#####X# #"###""""""" ##???? | | ?????????? """""" " "" ##??? | | ?????????? "" """ " #### | | ?????????? " " | | ???????????# | | ???????????### | | ?????????????## | | ??????????????## | | ???????????????##" | | ????????????????#""" """""" | | ????????????????#" ######""" | | ????????????????"" ""##????#####""" | | ????????????????""" """##?????????##""" | | ????????????????"" """##???????????#"""" | | ????????????????"" ""#????????????#"" | | ????????????????" #?????????????"""" | | ????????????????"" ?????????????? | | ????????????????? ???????????? | | ?????????????????? ??????????? | | ????????????????????? ???????????? | | ??????????????????????? ???????????? | | ?????????????????????????????????????????? "" | | ??????????????????????????????????????????#?""" " | | ??????????????????????????????????????????????##"" | +----------------------------------------------------+ Best States ------------- Heat Dissipation 25 Energy Generation 14 Energy Capacity 250 Matter Stores 300 Matter Capacity 300 Sight Range 16 Terrain Scan Density 10 Cloak Strength 5 Phase Shifting 5 Evasion (%) 45 Item Schematics ----------------- Seismic Detector | -10/Mines | Hacked Robot Schematics ------------------ None Fabricated ------------ Nothing Alien Tech Used ----------------- None Achievements -------------- Armchair Analyst GoHome() Challenges ------------ None Game ------ Seed SchematicSapperCharge Manual? 0 Play Time 00:44:24 Cumulative 29.5 hours Start 2024.04.04 @ 18:49:48 End 2024.04.04 @ 19:37:40 Sessions 1 Manual Loads 0 Difficulty Rogue Special Mode None Game No. 11 Rogue 11 Adventurer 0 Explorer 0 Win Type - Total 0 Types 0/0/0/0/0/0/0/0/0 Lore% 17 Gallery% 20 Achievement% 17 Wizard Run 0 Options --------- Layout 1 ASCII 0 Keyboard 0 Movement Arrows Keybinds 0 Fullscreen 1 Font 16/SmallcapsGlow Map View 55x38 Zoom Use 0% Tactical HUD 0 Map Filters NONE Filters NONE Steam 0 RUN: c7284c03-6d4b-4e7e-9eed-e01e48bd17c5